fUSD/lending_fUSD_20250209
["ID","MTS","AMOUNT","RATE_DAILY","PERIOD"]
[352474096,1739130645116,-574.86,0.00010683,2]
[352474097,1739130645125,-406.02686,0.00010683,2]
[352474098,1739130645135,-500.0,0.00010683,2]
[352474099,1739130645144,-500.0,0.00010683,2]
[352474100,1739130645153,-500.0,0.00010683,2]
[352474101,1739130645163,-778.0,0.00010684,2]
[352474102,1739130645174,-151.0,0.00010684,2]
[352474103,1739130645183,-151.0,0.00010684,2]
[352474104,1739130645193,-151.0,0.00010684,2]
[352474105,1739130645203,-248.58,0.00010684,2]
[352474106,1739130645212,-957.84,0.00010684,2]
[352474107,1739130645222,-500.0,0.00010684,2]
[352474108,1739130645231,-500.0,0.00010684,2]
[352474109,1739130645240,-500.0,0.00010684,2]
[352474110,1739130645249,-500.0,0.00010684,2]
[352474111,1739130645259,-414.83,0.00010684,2]
[352474112,1739130645272,-722.33,0.00010684,2]
[352474113,1739130645282,-500.0,0.00010684,2]
[352474114,1739130645291,-288.82,0.00010684,2]
[352474115,1739130645300,-530.79,0.00010684,2]
[352474116,1739130645310,-500.0,0.00010684,2]
[352474117,1739130645319,-500.0,0.00010684,2]
[352474118,1739130645329,-229.53,0.00010684,2]
[352474119,1739130645338,-500.0,0.00010684,2]
[352474120,1739130645348,-241.56,0.00010684,2]
[352474121,1739130645357,-500.0,0.00010684,2]
[352474122,1739130645367,-500.0,0.00010684,2]
[352474123,1739130645377,-714.58,0.00010684,2]
[352474124,1739130645386,-500.0,0.00010684,2]
[352474125,1739130645396,-500.0,0.00010684,2]
[352474126,1739130645405,-608.5,0.00010684,2]
[352474127,1739130645416,-500.0,0.00010684,2]
[352474128,1739130645425,-500.0,0.00010684,2]
[352474129,1739130645434,-500.0,0.00010684,2]
[352474130,1739130645443,-500.0,0.00010684,2]
[352474131,1739130645453,-500.0,0.00010684,2]
[352474132,1739130645463,-500.0,0.00010684,2]
[352474133,1739130645473,-500.0,0.00010684,2]
[352474134,1739130645484,-593.46,0.00010684,2]
[352474135,1739130645494,-500.0,0.00010684,2]
[352474136,1739130645504,-381.451289,0.00010684,2]
[352474137,1739130645655,-631.5,0.00010684,2]
[352474138,1739130645665,-905.78,0.00010684,2]
[352474139,1739130645675,-500.0,0.00010684,2]
[352474140,1739130645684,-500.0,0.00010684,2]
[352474141,1739130645694,-500.0,0.00010684,2]
[352474142,1739130645703,-500.0,0.00010684,2]
[352474143,1739130645712,-500.0,0.00010684,2]
[352474144,1739130645723,-622.63,0.00010684,2]
[352474145,1739130645733,-617.22,0.00010684,2]
[352474146,1739130645742,-500.0,0.00010684,2]
[352474147,1739130645752,-849.26,0.00010684,2]
[352474148,1739130645761,-500.0,0.00010684,2]
[352474149,1739130645771,-980.02,0.00010684,2]
[352474150,1739130645781,-500.0,0.00010684,2]
[352474151,1739130645790,-500.0,0.00010684,2]
[352474152,1739130645800,-1303.93,0.00010684,2]
[352474153,1739130645809,-500.0,0.00010684,2]
[352474154,1739130645819,-677.21,0.00010684,2]
[352474155,1739130645829,-621.58,0.00010684,2]
[352474156,1739130645838,-500.0,0.00010684,2]
[352474157,1739130645848,-540.57,0.00010684,2]
[352474158,1739130645858,-500.0,0.00010684,2]
[352474159,1739130645870,-584.15,0.00010684,2]
[352474160,1739130645879,-500.0,0.00010684,2]
[352474161,1739130645889,-500.0,0.00010684,2]
[352474162,1739130645901,-500.0,0.00010684,2]
[352474163,1739130645911,-1219.09,0.00010684,2]
[352474164,1739130645920,-500.0,0.00010684,2]
[352474165,1739130645930,-500.0,0.00010684,2]
[352474166,1739130645939,-745.03,0.00010684,2]
[352474167,1739130645950,-500.0,0.00010684,2]
[352474169,1739130645960,-500.0,0.00010684,2]
[352474170,1739130645970,-500.0,0.00010684,2]
[352474171,1739130645979,-500.0,0.00010684,2]
[352474172,1739130645989,-187.83,0.00010684,2]
[352474173,1739130645999,-500.0,0.00010684,2]
[352474174,1739130646009,-500.0,0.00010684,2]
[352474175,1739130646019,-630.33,0.00010684,2]
[352474176,1739130646029,-2246.07,0.00010684,2]
[352474177,1739130646039,-500.0,0.00010684,2]
[352474178,1739130646049,-685.95,0.00010684,2]
[352474179,1739130646059,-500.0,0.00010684,2]
[352474180,1739130646069,-500.0,0.00010684,2]
[352474181,1739130646079,-500.0,0.00010684,2]
[352474182,1739130646089,-500.0,0.00010684,2]
[352474183,1739130646099,-543.13,0.00010684,2]
[352474184,1739130646108,-150.0,0.00010685,2]
[352474185,1739130646118,-257.18734627,0.000107,2]
[352474186,1739130646128,-250.0,0.000107,2]
[352474187,1739130646138,-150.0,0.00010704,2]
[352474188,1739130646147,-150.0,0.00010707,2]
[352474189,1739130646157,-778.0,0.00010711,2]
[352474190,1739130646167,-1000.0,0.00010717,2]
[352474191,1739130646176,-150.0,0.00010723,2]
[352474192,1739130646186,-150.0,0.00010727,2]
[352474193,1739130646196,-2024.0,0.0001073,2]
[352474194,1739130646205,-1273.0,0.0001073,2]
[352474195,1739130646215,-568.0,0.0001073,2]
[352474196,1739130646224,-150.0,0.0001073,2]
[352474197,1739130646233,-638.0,0.0001073,2]
[352474198,1739130646243,-1827.0,0.0001073,2]
[352474199,1739130646252,-907.0,0.0001073,2]
[352474200,1739130646261,-783.0,0.0001073,2]
[352474201,1739130646271,-1264.0,0.0001073,2]
[352474202,1739130646281,-2954.0,0.0001073,2]
[352474203,1739130646290,-539.0,0.0001073,2]
[352474204,1739130646300,-4025.0,0.0001073,2]
[352474205,1739130646310,-1007.0,0.0001073,2]
[352474206,1739130646319,-150.193,0.0001073,2]
[352474207,1739130646328,-269.698,0.0001073,2]
[352474208,1739130646338,-150.699,0.0001073,2]
[352474209,1739130646348,-154.414,0.0001073,2]
[352474210,1739130646358,-3913.0,0.0001073,2]
[352474211,1739130646368,-1109.0,0.0001073,2]
[352474212,1739130646378,-778.0,0.00010739,2]
[352474213,1739130646387,-150.0,0.00010743,2]
[352474214,1739130646397,-150.0,0.00010749,2]
[352474215,1739130646406,-150.0,0.00010765,2]
[352474216,1739130646416,-778.0,0.00010766,2]
[352474217,1739130646426,-150.0,0.00010777,2]
[352474218,1739130646435,-151.0,0.00010779,2]
[352474219,1739130646445,-150.0,0.0001078,2]
[352474220,1739130646455,-150.0,0.00010786,2]
[352474221,1739130646464,-150.0,0.0001079,2]
[352474222,1739130646474,-150.0,0.00010792,2]
[352474223,1739130646483,-780.0,0.00010794,2]
[352474224,1739130646493,-300.0,0.00010796,2]
[352474225,1739130646503,-356.17,0.00010796,2]
[352474226,1739130646512,-876.67,0.00010796,2]
[352474227,1739130646522,-150.0,0.00010796,2]
[352474228,1739130646532,-770.83958325,0.000108,2]
[352474229,1739130646542,-685.0746462,0.00010814,2]
[352474230,1739130646551,-500.0,0.0001082,2]
[352474231,1739130646561,-500.0,0.0001082,2]
[352474232,1739130646571,-500.0,0.0001082,2]
[352474233,1739130646581,-500.0,0.0001082,2]
[352474234,1739130646591,-500.0,0.0001082,2]
[352474235,1739130646600,-500.0,0.0001082,2]
[352474236,1739130646611,-500.0,0.0001082,2]
[352474237,1739130646621,-642.43,0.0001082,2]
[352474238,1739130646631,-500.0,0.0001082,2]
[352474239,1739130646640,-528.97,0.0001082,2]
[352474240,1739130646650,-166.73,0.0001082,2]
[352474242,1739130646659,-500.0,0.0001082,2]
[352474244,1739130646670,-500.0,0.0001082,2]
[352474246,1739130646681,-234.39,0.0001082,2]
[352474248,1739130646691,-574.86,0.0001082,2]
[352474251,1739130646700,-406.02686,0.0001082,2]
[352474253,1739130646709,-500.0,0.0001082,2]
[352474255,1739130646719,-299.47,0.0001082,2]
[352474256,1739130646729,-398.78534523,0.0001082,2]
[352474259,1739130646739,-957.84,0.00010821,2]
[352474260,1739130646750,-494.14,0.00010821,2]
[352474262,1739130646760,-500.0,0.00010821,2]
[352474265,1739130646769,-500.0,0.00010821,2]
[352474267,1739130646780,-500.0,0.00010821,2]
[352474268,1739130646790,-722.33,0.00010821,2]
[352474269,1739130646800,-264.24,0.00010821,2]
[352474270,1739130646810,-633.24,0.00010821,2]
[352474271,1739130646819,-150.0,0.00010821,2]
[352474272,1739130646830,-500.0,0.00010821,2]
[352474273,1739130646840,-513.51,0.00010821,2]
[352474274,1739130646849,-500.0,0.00010821,2]
[352474275,1739130646858,-482.55185138,0.00010821,2]
[352474276,1739130646867,-714.58,0.00010821,2]
[352474277,1739130646877,-500.0,0.00010821,2]
[352474278,1739130646887,-500.0,0.00010821,2]
[352474279,1739130646901,-608.5,0.00010821,2]
[352474280,1739130646911,-500.0,0.00010821,2]
[352474281,1739130646922,-500.0,0.00010821,2]
[352474282,1739130646932,-500.0,0.00010821,2]
[352474283,1739130646942,-244.39543148,0.00010821,2]
[352474284,1739130646952,-500.0,0.00010821,2]
[352474285,1739130646961,-500.0,0.00010821,2]
[352474286,1739130646972,-500.0,0.00010821,2]
[352474287,1739130646981,-500.0,0.00010821,2]
[352474288,1739130646991,-381.451289,0.00010821,2]
[352474289,1739130646999,-631.5,0.00010821,2]
[352474290,1739130647009,-905.78,0.00010821,2]
[352474291,1739130647019,-500.0,0.00010821,2]
[352474292,1739130647028,-500.0,0.00010821,2]
[352474293,1739130647037,-500.0,0.00010821,2]
[352474294,1739130647046,-500.0,0.00010821,2]
[352474295,1739130647055,-500.0,0.00010821,2]
[352474296,1739130647064,-622.63,0.00010821,2]
[352474297,1739130647073,-617.22,0.00010821,2]
[352474298,1739130647083,-500.0,0.00010821,2]
[352474299,1739130647092,-849.26,0.00010821,2]
[352474300,1739130647102,-980.02,0.00010821,2]
[352474301,1739130647111,-500.0,0.00010821,2]
[352474302,1739130647121,-500.0,0.00010821,2]
[352474303,1739130647131,-500.0,0.00010821,2]
[352474304,1739130647141,-1303.93,0.00010821,2]
[352474305,1739130647150,-500.0,0.00010821,2]
[352474306,1739130647160,-677.21,0.00010821,2]
[352474307,1739130647170,-621.58,0.00010821,2]
[352474308,1739130647179,-500.0,0.00010821,2]
[352474309,1739130647189,-540.57,0.00010821,2]
[352474310,1739130647199,-500.0,0.00010821,2]
[352474311,1739130647209,-584.15,0.00010821,2]
[352474312,1739130647218,-500.0,0.00010821,2]
[352474313,1739130647228,-500.0,0.00010821,2]
[352474314,1739130647237,-500.0,0.00010821,2]
[352474315,1739130647247,-1219.09,0.00010821,2]
[352474316,1739130647257,-182.15,0.00010821,2]
[352474317,1739130647266,-500.0,0.00010821,2]
[352474318,1739130647276,-745.03,0.00010821,2]
[352474319,1739130647286,-500.0,0.00010821,2]
[352474320,1739130647296,-500.0,0.00010821,2]
[352474321,1739130647306,-500.0,0.00010821,2]
[352474322,1739130647315,-500.0,0.00010821,2]
[352474323,1739130647325,-500.0,0.00010821,2]
[352474324,1739130647335,-500.0,0.00010821,2]
[352474325,1739130647345,-630.33,0.00010821,2]
[352474326,1739130647355,-2246.07,0.00010821,2]
[352474327,1739130647364,-500.0,0.00010821,2]
[352474328,1739130647374,-685.95,0.00010821,2]
[352474329,1739130647383,-500.0,0.00010821,2]
[352474330,1739130647392,-500.0,0.00010821,2]
[352474331,1739130647402,-500.0,0.00010821,2]
[352474332,1739130647411,-500.0,0.00010821,2]
[352474333,1739130647422,-543.13,0.00010821,2]
[352474334,1739130647431,-150.0,0.00010823,2]
[352474335,1739130647441,-150.0,0.00010833,2]
[352474336,1739130647451,-150.0,0.0001084,2]
[352474337,1739130647460,-150.0,0.00010859,2]
[352474338,1739130647470,-150.0,0.0001086,2]
[352474339,1739130647480,-2000.0,0.00010866,4]
[352474340,1739130647490,-215.22,0.00010876,2]
[352474341,1739130647500,-6000.0,0.0001088,2]
[352474342,1739130647510,-150.0,0.00010884,2]
[352474343,1739130647519,-150.0,0.00010891,2]
[352474344,1739130647529,-150.0,0.00010894,2]
[352474345,1739130647539,-384.54681952,0.00010895,2]
[352474346,1739130647550,-1700.0,0.000109,3]
[352474347,1739130647560,-166.86077253,0.000109,2]
[352474348,1739130647570,-150.0,0.00010905,2]
[352474349,1739130647580,-150.0,0.00010923,2]
[352474350,1739130647591,-150.0,0.00010925,2]
[352474351,1739130647601,-150.0,0.00010927,2]
[352474352,1739130647612,-150.0,0.00010939,2]
[352474353,1739130647621,-150.0,0.00010953,2]
[352474354,1739130647636,-150.0,0.00010956,2]
[352474355,1739130647646,-150.0,0.00010957,2]
[352474356,1739130647657,-500.0,0.00010957,2]
[352474357,1739130647668,-500.0,0.00010957,2]
[352474358,1739130647679,-556.77,0.00010957,2]
[352474359,1739130647690,-574.18,0.00010957,2]
[352474360,1739130647700,-500.0,0.00010957,2]
[352474361,1739130647710,-500.0,0.00010957,2]
[352474362,1739130647720,-500.0,0.00010957,2]
[352474363,1739130647730,-642.43,0.00010957,2]
[352474364,1739130647740,-500.0,0.00010957,2]
[352474365,1739130647750,-528.97,0.00010957,2]
[352474366,1739130647761,-500.0,0.00010957,2]
[352474367,1739130647772,-500.0,0.00010957,2]
[352474368,1739130647783,-574.86,0.00010957,2]
[352474369,1739130647793,-406.02686,0.00010957,2]
[352474370,1739130647803,-500.0,0.00010957,2]
[352474371,1739130647814,-286.258894,0.00010958,2]
[352474372,1739130647825,-151.038542,0.00010958,2]
[352474373,1739130647835,-151.0,0.00010958,2]
[352474374,1739130647845,-957.84,0.00010958,2]
[352474375,1739130647856,-500.0,0.00010958,2]
[352474376,1739130647867,-500.0,0.00010958,2]
[352474377,1739130647878,-500.0,0.00010958,2]
[352474378,1739130647888,-722.33,0.00010958,2]
[352474379,1739130647900,-500.0,0.00010958,2]
[352474380,1739130647910,-345.75,0.00010958,2]
[352474381,1739130647923,-714.58,0.00010958,2]
[352474382,1739130647935,-500.0,0.00010958,2]
[352474383,1739130647947,-500.0,0.00010958,2]
[352474384,1739130647958,-608.5,0.00010958,2]
[352474385,1739130647969,-500.0,0.00010958,2]
[352474386,1739130647980,-500.0,0.00010958,2]
[352474387,1739130647991,-500.0,0.00010958,2]
[352474388,1739130648001,-500.0,0.00010958,2]
[352474389,1739130648012,-500.0,0.00010958,2]
[352474390,1739130648023,-500.0,0.00010958,2]
[352474391,1739130648033,-381.451289,0.00010958,2]
[352474392,1739130648044,-631.5,0.00010958,2]
[352474393,1739130648055,-905.78,0.00010958,2]
[352474394,1739130648065,-500.0,0.00010958,2]
[352474395,1739130648076,-500.0,0.00010958,2]
[352474396,1739130648086,-500.0,0.00010958,2]
[352474397,1739130648096,-500.0,0.00010958,2]
[352474398,1739130648106,-500.0,0.00010958,2]
[352474399,1739130648116,-622.63,0.00010958,2]
[352474400,1739130648171,-617.22,0.00010958,2]
[352474401,1739130648182,-496.63262891,0.00010958,2]
[352474402,1739130648192,-849.26,0.00010958,2]
[352474403,1739130648202,-980.02,0.00010958,2]
[352474404,1739130648212,-500.0,0.00010958,2]
[352474405,1739130648223,-500.0,0.00010958,2]
[352474406,1739130648233,-500.0,0.00010958,2]
[352474407,1739130648243,-1303.93,0.00010958,2]
[352474408,1739130648253,-500.0,0.00010958,2]
[352474409,1739130648263,-677.21,0.00010958,2]
[352474410,1739130648273,-621.58,0.00010958,2]
[352474411,1739130648286,-475.46,0.00010958,2]
[352474412,1739130648296,-540.57,0.00010958,2]
[352474413,1739130648307,-500.0,0.00010958,2]
[352474414,1739130648316,-584.15,0.00010958,2]
[352474415,1739130648326,-500.0,0.00010958,2]
[352474416,1739130648336,-500.0,0.00010958,2]
[352474417,1739130648345,-500.0,0.00010958,2]
[352474418,1739130648355,-1219.09,0.00010958,2]
[352474419,1739130648365,-500.0,0.00010958,2]
[352474420,1739130648376,-745.03,0.00010958,2]
[352474421,1739130648386,-500.0,0.00010958,2]
[352474422,1739130648396,-500.0,0.00010958,2]
[352474423,1739130648406,-500.0,0.00010958,2]
[352474424,1739130648416,-500.0,0.00010958,2]
[352474425,1739130648427,-500.0,0.00010958,2]
[352474426,1739130648437,-500.0,0.00010958,2]
[352474427,1739130648448,-630.33,0.00010958,2]
[352474428,1739130648459,-2246.07,0.00010958,2]
[352474429,1739130648470,-500.0,0.00010958,2]
[352474430,1739130648485,-685.95,0.00010958,2]
[352474431,1739130648497,-500.0,0.00010958,2]
[352474432,1739130648508,-500.0,0.00010958,2]
[352474433,1739130648518,-500.0,0.00010958,2]
[352474434,1739130648528,-500.0,0.00010958,2]
[352474435,1739130648538,-543.13,0.00010958,2]
[352474436,1739130648548,-1059.0,0.00010958,2]
[352474437,1739130648558,-500.0,0.00010959,2]
[352474438,1739130648569,-2000.0,0.00010959,2]
[352474439,1739130648579,-2000.0,0.00010959,2]
[352474440,1739130648589,-500.0,0.00010959,2]
[352474441,1739130648600,-200.0,0.00010959,2]
[352474442,1739130648609,-200.0,0.00010959,2]
[352474443,1739130648620,-200.0,0.00010959,2]
[352474444,1739130648631,-150.0,0.00010959,2]
[352474445,1739130648642,-282.84,0.00010959,2]
[352474446,1739130648652,-14417.02852002,0.00011,2]
[352474447,1739130648663,-151.0,0.00011,2]
[352474448,1739130648675,-166.86077253,0.00011032,2]
[352474449,1739130648685,-2800.0,0.00011044,2]
[352474450,1739130648695,-2700.0,0.00011044,2]
[352474451,1739130648706,-1100.0,0.00011044,2]
[352474452,1739130648717,-165.26,0.00011067,2]
[352474453,1739130648728,-2206.4880731,0.0001109,2]
[352474454,1739130648739,-151.0,0.00011092,2]
[352474455,1739130648750,-500.0,0.00011094,2]
[352474456,1739130648760,-500.0,0.00011094,2]
[352474457,1739130648771,-500.0,0.00011094,2]
[352474458,1739130648780,-500.0,0.00011094,2]
[352474459,1739130648790,-500.0,0.00011094,2]
[352474460,1739130648800,-642.43,0.00011094,2]
[352474461,1739130648810,-399.12511439,0.00011094,2]
[352474462,1739130648820,-528.97,0.00011094,2]
[352474463,1739130648830,-500.0,0.00011094,2]
[352474464,1739130648839,-500.0,0.00011094,2]
[352474465,1739130648849,-1073.03,0.00011094,2]
[352474466,1739130648859,-574.86,0.00011094,2]
[352474467,1739130648869,-406.02686,0.00011094,2]
[352474468,1739130648878,-500.0,0.00011094,2]
[352474469,1739130648887,-957.84,0.00011095,2]
[352474470,1739130648899,-500.0,0.00011095,2]
[352474471,1739130648909,-500.0,0.00011095,2]
[352474472,1739130648919,-592.86224409,0.00011095,2]
[352474473,1739130648929,-722.33,0.00011095,2]
[352474474,1739130648941,-500.0,0.00011095,2]
[352474475,1739130648952,-714.58,0.00011095,2]
[352474476,1739130648962,-500.0,0.00011095,2]
[352474477,1739130648972,-500.0,0.00011095,2]
[352474478,1739130648982,-608.5,0.00011095,2]
[352474479,1739130648993,-500.0,0.00011095,2]
[352474480,1739130649002,-500.0,0.00011095,2]
[352474481,1739130649012,-500.0,0.00011095,2]
[352474482,1739130649021,-500.0,0.00011095,2]
[352474483,1739130649031,-500.0,0.00011095,2]
[352474484,1739130649040,-500.0,0.00011095,2]
[352474485,1739130649050,-381.451289,0.00011095,2]
[352474486,1739130649059,-631.5,0.00011095,2]
[352474487,1739130649070,-905.78,0.00011095,2]
[352474488,1739130649080,-500.0,0.00011095,2]
[352474489,1739130649089,-500.0,0.00011095,2]
[352474490,1739130649099,-500.0,0.00011095,2]
[352474491,1739130649109,-184.26,0.00011095,2]
[352474492,1739130649118,-500.0,0.00011095,2]
[352474493,1739130649128,-622.63,0.00011095,2]
[352474494,1739130649137,-617.22,0.00011095,2]
[352474495,1739130649147,-849.26,0.00011095,2]
[352474496,1739130649156,-980.02,0.00011095,2]
[352474497,1739130649166,-500.0,0.00011095,2]
[352474498,1739130649177,-500.0,0.00011095,2]
[352474499,1739130649186,-500.0,0.00011095,2]
[352474500,1739130649195,-1303.93,0.00011095,2]
[352474501,1739130649205,-500.0,0.00011095,2]
[352474502,1739130649214,-677.21,0.00011095,2]
[352474503,1739130649222,-621.58,0.00011095,2]
[352474504,1739130649231,-540.57,0.00011095,2]
[352474505,1739130649240,-500.0,0.00011095,2]
[352474506,1739130649250,-584.15,0.00011095,2]
[352474507,1739130649259,-500.0,0.00011095,2]
[352474508,1739130649268,-500.0,0.00011095,2]
[352474509,1739130649277,-500.0,0.00011095,2]
[352474510,1739130649286,-1219.09,0.00011095,2]
[352474511,1739130649295,-500.0,0.00011095,2]
[352474512,1739130649305,-745.03,0.00011095,2]
[352474513,1739130649314,-500.0,0.00011095,2]
[352474514,1739130649323,-500.0,0.00011095,2]
[352474515,1739130649332,-500.0,0.00011095,2]
[352474516,1739130649342,-500.0,0.00011095,2]
[352474517,1739130649351,-500.0,0.00011095,2]
[352474518,1739130649361,-500.0,0.00011095,2]
[352474519,1739130649370,-630.33,0.00011095,2]
[352474520,1739130649379,-2246.07,0.00011095,2]
[352474521,1739130649388,-500.0,0.00011095,2]
[352474522,1739130649397,-685.95,0.00011095,2]
[352474523,1739130649407,-250.62588961,0.00011095,2]
[352474524,1739130649416,-500.0,0.00011095,2]
[352474525,1739130649429,-343.56,0.00011095,2]
[352474526,1739130649438,-500.0,0.00011095,2]
[352474527,1739130649448,-543.13,0.00011095,2]
[352474528,1739130649458,-3132.28148792,0.00011099,2]
[352474529,1739130649467,-12221.19587204,0.00011099,2]
[352474530,1739130649477,-12221.19587197,0.00011099,2]
[352474531,1739130649486,-12221.19587197,0.00011099,2]
[352474532,1739130649495,-12221.19587197,0.00011099,2]
[352474533,1739130649505,-12221.19587197,0.00011099,2]
[352474534,1739130649514,-12221.19587197,0.00011193,2]
[352474535,1739130649523,-878.2478375,0.00011224,2]
[352474536,1739130649532,-384.54681952,0.00011225,2]
[352474537,1739130649541,-500.0,0.00011231,2]
[352474538,1739130649551,-500.0,0.00011231,2]
[352474539,1739130649560,-500.0,0.00011231,2]
[352474540,1739130649569,-500.0,0.00011231,2]
[352474541,1739130649579,-500.0,0.00011231,2]
[352474542,1739130649589,-642.43,0.00011231,2]
[352474543,1739130649598,-528.97,0.00011231,2]
[352474544,1739130649607,-500.0,0.00011231,2]
[352474545,1739130649617,-500.0,0.00011231,2]
[352474546,1739130649626,-574.86,0.00011231,2]
[352474547,1739130649636,-406.02686,0.00011231,2]
[352474548,1739130649645,-500.0,0.00011231,2]
[352474549,1739130649654,-957.84,0.00011232,2]
[352474550,1739130649663,-500.0,0.00011232,2]
[352474551,1739130649673,-500.0,0.00011232,2]
[352474552,1739130649683,-722.33,0.00011232,2]
[352474553,1739130649692,-500.0,0.00011232,2]
[352474554,1739130649702,-714.58,0.00011232,2]
[352474555,1739130649711,-500.0,0.00011232,2]
[352474556,1739130649720,-500.0,0.00011232,2]
[352474557,1739130649730,-608.5,0.00011232,2]
[352474558,1739130649739,-500.0,0.00011232,2]
[352474559,1739130649748,-500.0,0.00011232,2]
[352474560,1739130649758,-500.0,0.00011232,2]
[352474561,1739130649767,-500.0,0.00011232,2]
[352474562,1739130649780,-500.0,0.00011232,2]
[352474563,1739130649790,-500.0,0.00011232,2]
[352474564,1739130649799,-381.451289,0.00011232,2]
[352474565,1739130649808,-631.5,0.00011232,2]
[352474566,1739130649817,-905.78,0.00011232,2]
[352474567,1739130649826,-500.0,0.00011232,2]
[352474568,1739130649836,-500.0,0.00011232,2]
[352474569,1739130649845,-500.0,0.00011232,2]
[352474570,1739130649854,-500.0,0.00011232,2]
[352474571,1739130649863,-622.63,0.00011232,2]
[352474572,1739130649872,-617.22,0.00011232,2]
[352474573,1739130649886,-849.26,0.00011232,2]
[352474574,1739130649895,-980.02,0.00011232,2]
[352474575,1739130649909,-233.29,0.00011232,2]
[352474576,1739130649920,-500.0,0.00011232,2]
[352474577,1739130649929,-500.0,0.00011232,2]
[352474578,1739130649938,-1303.93,0.00011232,2]
[352474579,1739130649948,-500.0,0.00011232,2]
[352474580,1739130649958,-677.21,0.00011232,2]
[352474581,1739130649968,-621.58,0.00011232,2]
[352474582,1739130649977,-540.57,0.00011232,2]
[352474583,1739130649986,-500.0,0.00011232,2]
[352474584,1739130649996,-584.15,0.00011232,2]
[352474585,1739130650006,-500.0,0.00011232,2]
[352474586,1739130650016,-200.37,0.00011232,2]
[352474587,1739130650025,-500.0,0.00011232,2]
[352474588,1739130650035,-1219.09,0.00011232,2]
[352474589,1739130650044,-500.0,0.00011232,2]
[352474590,1739130650054,-745.03,0.00011232,2]
[352474591,1739130650063,-500.0,0.00011232,2]
[352474592,1739130650073,-500.0,0.00011232,2]
[352474593,1739130650082,-500.0,0.00011232,2]
[352474594,1739130650091,-500.0,0.00011232,2]
[352474595,1739130650101,-234.33,0.00011232,2]
[352474596,1739130650111,-500.0,0.00011232,2]
[352474597,1739130650120,-630.33,0.00011232,2]
[352474598,1739130650129,-2246.07,0.00011232,2]
[352474599,1739130650139,-500.0,0.00011232,2]
[352474600,1739130650149,-685.95,0.00011232,2]
[352474601,1739130650158,-500.0,0.00011232,2]
[352474602,1739130650167,-500.0,0.00011232,2]
[352474603,1739130650178,-543.13,0.00011232,2]
[352474604,1739130650187,-16663.76823565,0.00011235,2]
[352474605,1739130650197,-384.54681952,0.00011295,2]
[352474606,1739130650206,-3009.55,0.000113,2]
[352474607,1739130650215,-151.0,0.00011318,2]
[352474608,1739130650224,-151.0,0.00011318,2]
[352474609,1739130650234,-500.0,0.00011368,2]
[352474610,1739130650244,-280.62,0.00011368,2]